bitfinex/quotes_SOLUSD_20220307
["timestamp","ask_amount","ask_price","bid_price","bid_amount"]
[1646678060436,6.0,83.036,83.01,18.0714]
[1646678060636,0.25,83.038,83.01,18.0714]
[1646678060937,0.25,83.047,83.01,18.0714]
[1646678061136,22.8049,83.049,83.011,38.11949441]
[1646678061137,0.25,83.048,83.011,38.11949441]
[1646678061336,0.25,83.048,83.02,18.0664]
[1646678062037,6.271,83.048,83.02,18.0664]
[1646678063059,6.021,83.048,83.02,18.0664]
[1646678063238,6.021,83.048,83.0,100.0]
[1646678063441,22.8049,83.049,83.001,0.25]
[1646678063638,12.47343485,83.048,83.001,0.25]
[1646678063837,12.022,83.048,83.001,0.25]
[1646678064240,0.25,83.047,83.0,118.072]
[1646678064438,6.022,83.046,83.0,118.072]
[1646678064637,6.25,83.045,83.0,118.072]
[1646678064838,6.022,83.044,83.0,118.072]
[1646678065037,6.25,83.043,83.0,118.072]
[1646678065240,6.25,83.042,83.0,118.072]
[1646678065438,17.83876212,83.042,83.0,118.072]
[1646678065639,6.25,83.041,83.0,118.072]
[1646678066442,6.022,83.04,83.0,118.072]
[1646678066642,6.25,83.039,83.0,118.072]
[1646678067345,6.0,83.038,83.0,118.072]
[1646678067545,0.25,83.037,83.0,118.072]
[1646678067749,6.022,83.036,83.0,118.072]
[1646678067950,0.25,83.035,83.0,118.072]
[1646678068148,6.022,83.034,83.0,118.072]
[1646678068349,0.25,83.033,83.0,118.072]
[1646678069347,0.25,83.038,83.0,118.072]
[1646678069547,6.022,83.037,83.0,118.072]
[1646678069849,0.25,83.036,83.0,118.072]
[1646678070047,6.022,83.035,83.0,118.072]
[1646678070251,6.022,83.039,83.001,0.25]
[1646678071174,0.4243709,83.037,83.001,0.25]
[1646678071371,6.0,83.04,83.001,0.25]
[1646678071570,23.4621,83.039,83.001,0.25]
[1646678072069,23.4621,83.039,83.01,18.0715]
[1646678072269,23.2121,83.039,83.01,18.0715]
[1646678072470,23.2121,83.039,83.011,0.25]
[1646678073172,23.2121,83.039,83.02,18.0679]
[1646678073470,6.022,83.061,83.021,0.25]
[1646678073670,6.021,83.066,83.021,0.25]
[1646678073870,6.0,83.065,83.021,0.25]
[1646678074071,6.019,83.064,83.021,0.25]
[1646678074370,7.59157126,83.063,83.01,18.0711]
[1646678074570,120.3,83.061,83.011,0.25]
[1646678074771,0.52369263,83.059,83.011,0.25]
[1646678074972,0.52369263,83.057,83.011,0.25]
[1646678075172,0.54395693,83.055,83.011,0.25]
[1646678075474,0.54395693,83.053,83.011,0.25]
[1646678075674,6.021,83.052,83.011,0.25]
[1646678075872,6.25,83.051,83.011,0.25]
[1646678076074,120.3,83.049,83.0,100.0]
[1646678076273,120.3,83.047,83.001,0.25]
[1646678076573,5.0,83.043,82.967,27.69720568]
[1646678076772,5.0,83.043,82.83,12.58310365]
[1646678076773,120.3,83.039,82.948,44.69591798]
[1646678076974,0.67862258,83.036,82.955,27.69720568]
[1646678077173,0.67862258,83.034,82.96,18.0819]
[1646678077375,0.67862258,83.032,82.96,18.0819]
[1646678077576,193.11862258,83.029,82.939,6.28294979]
[1646678077777,1.59157126,83.024,82.939,6.28294979]
[1646678078079,12.275,83.028,82.91,14.43]
[1646678078080,0.74010406,83.008,82.91,18.0928]
[1646678078276,0.74010406,83.005,82.91,18.0928]
[1646678078476,18.0928,82.98,82.928,6.28084639]
[1646678078677,121.04010406,82.978,82.91,18.0928]
[1646678078976,0.74010406,82.975,82.91,18.0928]
[1646678079176,120.3,82.973,82.91,18.0928]
[1646678079381,6.25,82.979,82.9,18.0949]
[1646678079382,120.3,82.971,82.9,18.0949]
[1646678079576,12.277,82.972,82.853,17.6527]
[1646678079577,120.3,82.959,82.894,18.3232]
[1646678079777,120.3,82.957,82.881,23.16728483]
[1646678079976,120.3,82.955,82.881,23.16728483]
[1646678080176,120.3,82.953,82.881,23.16728483]
[1646678080376,6.25,82.952,82.881,23.16728483]
[1646678080579,6.25,82.952,82.89,18.096]
[1646678080877,6.25,82.952,82.891,0.25]
[1646678081076,6.029,82.951,82.89,23.16728483]
[1646678081279,120.3,82.949,82.891,23.16728483]
[1646678081478,120.3,82.947,82.88,17.6412]
[1646678081675,6.25,82.946,82.88,17.6412]
[1646678081876,6.25,82.946,82.88,40.80848483]
[1646678082077,6.25,82.946,82.89,18.0962]
[1646678082780,12.03,82.945,82.891,0.25]
[1646678082981,0.25,82.944,82.891,0.25]
[1646678083184,6.03,82.943,82.891,0.25]
[1646678083382,6.25,82.942,82.891,0.25]
[1646678083583,6.03,82.941,82.891,0.25]
[1646678083882,19.26737419,82.939,82.891,0.25]
[1646678084086,12.28,82.938,82.891,0.25]
[1646678084685,6.25,82.938,82.891,0.25]
[1646678085191,6.25,82.938,82.867,23.16728483]
[1646678085484,0.47465416,82.936,82.869,0.25]
[1646678085686,6.031,82.935,82.869,0.25]
[1646678085885,6.75005329,82.934,82.869,0.25]
[1646678086085,6.031,82.933,82.869,0.25]
[1646678086284,6.25,82.932,82.87,18.101]
[1646678086488,6.031,82.931,82.871,43.42054931]
[1646678086685,47.2702,82.937,82.872,12.031]
[1646678086985,6.031,82.936,82.873,23.41728483]
[1646678087184,6.0,82.935,82.874,6.0]
[1646678087385,6.031,82.934,82.88,18.0904]
[1646678087585,16.73308488,82.933,82.88,18.0904]
[1646678087785,12.03,82.932,82.881,0.25]
[1646678087984,0.25,82.931,82.881,0.25]
[1646678088190,6.03,82.93,82.881,0.25]
[1646678088385,0.25,82.929,82.881,0.25]
[1646678088585,0.25,82.929,82.882,6.03]
[1646678088788,0.25,82.929,82.883,0.25]
[1646678089188,0.25,82.929,82.89,18.0964]
[1646678089388,0.25,82.929,82.891,35.48351442]
[1646678089587,0.25,82.936,82.891,35.48351442]
[1646678089790,6.25,82.936,82.891,35.48351442]
[1646678090190,6.25,82.936,82.891,0.25]
[1646678090391,6.03,82.935,82.891,0.25]
[1646678090591,6.25,82.934,82.891,0.25]
[1646678090792,6.03,82.933,82.891,0.25]
[1646678090988,6.25,82.932,82.891,0.25]
[1646678091188,6.03,82.931,82.891,0.25]
[1646678091391,0.25,82.93,82.891,0.25]
[1646678091588,6.03,82.929,82.891,0.25]
[1646678091788,0.25,82.928,82.891,0.25]
[1646678091991,6.03,82.927,82.891,0.25]
[1646678092294,0.25,82.928,82.891,0.25]
[1646678092692,47.2702,82.937,82.9,18.0949]
[1646678092890,6.0,82.936,82.901,0.25]
[1646678094191,6.0,82.936,82.9,18.0949]
[1646678094391,0.25,82.935,82.9,18.0949]
[1646678095191,6.03,82.963,82.9,18.0949]
[1646678095395,6.0,82.955,82.9,18.0949]
[1646678095596,6.0,82.955,82.901,6.25]
[1646678095795,6.0,82.966,82.91,18.0855]
[1646678095992,6.0,82.978,82.911,6.25]
[1646678096193,6.027,82.977,82.92,60.2862]
[1646678096392,6.0,82.976,82.921,0.25]
[1646678096592,6.277,82.975,82.921,0.25]
[1646678096792,6.0,82.974,82.921,40.12506426]
[1646678096993,6.277,82.973,82.921,40.12506426]
[1646678097193,6.0,82.972,82.93,18.0859]
[1646678097395,0.25,82.971,82.931,0.25]
[1646678097794,6.027,82.97,82.931,0.25]
[1646678097994,6.027,82.975,82.931,0.25]
[1646678098194,6.0,82.974,82.94,18.0864]
[1646678098398,6.027,82.978,82.941,0.25]
[1646678098593,6.027,82.996,82.941,0.25]
[1646678098793,20.90767908,82.994,82.941,0.25]
[1646678098994,6.026,82.993,82.941,0.25]
[1646678099200,120.3,82.992,82.941,0.25]
[1646678099397,120.3,82.99,82.941,0.25]
[1646678099696,120.3,82.988,82.912,0.25]
[1646678099896,120.3,82.986,82.912,0.25]
[1646678100198,120.3,82.984,82.912,3.08613526]
[1646678100396,12.277,82.983,82.913,6.0]
[1646678100596,6.027,82.983,82.92,18.089]
[1646678100796,6.25,82.982,82.921,0.25]
[1646678101004,1.53509617,82.981,82.921,0.25]
[1646678101196,0.25,82.98,82.921,6.25]
[1646678102197,24.0526,82.987,82.93,18.0842]
[1646678102397,24.0526,82.987,82.931,6.25]
[1646678102596,6.0,82.986,82.932,34.38456134]
[1646678102797,6.0,82.986,82.933,6.25]
[1646678104197,6.0,82.986,82.94,18.0845]
[1646678104397,6.0,82.986,82.941,0.25]
[1646678104598,6.026,82.985,82.933,6.25]
[1646678104798,6.0,82.984,82.933,6.25]
[1646678104998,18.6940203,82.983,82.933,6.25]
[1646678105198,6.0,82.982,82.933,6.25]
[1646678105799,6.027,82.986,82.933,6.25]
[1646678106198,24.0526,82.987,82.95,18.0837]
[1646678106398,24.0526,82.987,82.951,0.25]
[1646678106800,6.026,82.998,82.951,0.25]
[1646678107000,0.25,82.997,82.951,0.25]
[1646678107200,6.025,83.028,82.951,0.25]
[1646678107403,29.1329,83.027,82.951,0.25]
[1646678107601,6.024,83.026,82.96,18.0822]
[1646678107802,6.024,83.026,82.961,6.25]
[1646678108001,23.0484,83.029,82.97,60.2408]
[1646678108204,6.024,83.042,82.971,6.25]
[1646678108404,6.023,83.059,82.971,33.49169833]
[1646678108605,6.023,83.059,82.98,18.0723]
[1646678108800,22.27489247,83.062,82.981,48.39168324]
[1646678109001,6.023,83.061,82.981,48.39168324]
[1646678109602,6.023,83.061,82.99,18.0694]
[1646678109903,126.323,83.061,82.991,6.25]
[1646678110104,120.3,83.041,82.991,6.25]
[1646678110302,12.272,83.04,82.991,0.25]
[1646678110607,120.3,83.039,82.97,18.0796]
[1646678110812,120.3,83.037,82.971,6.0]
[1646678111004,120.80326278,83.035,82.97,18.0796]
[1646678111206,120.3,83.033,82.95,74.6909]
[1646678111505,120.3,83.031,82.95,74.6909]
[1646678111704,12.274,83.03,82.97,18.08]
[1646678112124,12.274,83.03,82.971,35.02826654]
[1646678112324,47.2139,83.029,82.972,0.25]
[1646678112624,6.25,83.028,82.972,0.25]
[1646678113024,120.3,83.027,82.98,18.0771]
[1646678113224,6.25,83.026,82.98,18.0771]
[1646678114129,0.25,83.026,82.98,18.0771]
[1646678114426,120.3,83.024,82.97,18.0797]
[1646678114625,12.274,83.023,82.971,0.25]
[1646678114828,6.25,83.022,82.971,0.25]
[1646678115031,6.024,83.021,82.971,0.25]
[1646678115229,6.25,83.02,82.971,0.25]
[1646678115426,6.024,83.019,82.971,0.25]
[1646678115626,6.25,83.018,82.971,0.25]
[1646678115828,6.024,83.017,82.962,0.25]
[1646678116027,6.25,83.016,82.962,0.25]
[1646678116231,6.024,83.015,82.98,18.0777]
[1646678116527,6.25,83.014,82.98,18.0777]
[1646678116728,6.024,83.013,82.98,18.0777]
[1646678116927,6.25,83.012,82.98,18.0777]
[1646678117127,6.024,83.011,82.98,18.0777]
[1646678117329,6.0,83.01,82.98,18.0777]
[1646678117729,0.25,83.009,82.98,18.0777]
[1646678118929,6.25,83.021,82.98,18.0777]
[1646678119129,6.024,83.02,82.98,18.0777]
[1646678119329,6.25,83.019,82.98,18.0777]
[1646678119531,6.024,83.018,82.98,18.0777]
[1646678119731,6.0,83.017,82.981,0.25]
[1646678119930,6.0,83.017,82.99,18.0757]
[1646678120232,6.024,83.028,82.991,6.25]
[1646678120431,120.3,83.061,82.991,6.25]
[1646678120432,6.023,83.042,82.991,6.25]
[1646678120831,6.023,83.042,83.0,18.0714]
[1646678121038,6.023,83.042,83.001,6.0]
[1646678121234,0.25,83.041,83.0,18.0714]
[1646678121430,6.022,83.04,83.0,18.0714]
[1646678121631,6.0,83.039,83.0,18.0714]
[1646678121931,6.022,83.038,83.0,18.0714]
[1646678122131,6.0,83.037,83.0,18.0714]
[1646678122331,6.022,83.036,83.0,18.0714]
[1646678122531,6.0,83.035,83.0,18.0714]
[1646678122732,6.272,83.034,83.0,18.0714]
[1646678122931,6.0,83.033,83.0,18.0714]
[1646678123130,0.25,83.032,83.0,18.0714]
[1646678124231,0.25,83.041,83.0,18.0714]
[1646678124833,0.43357047,83.04,82.99,18.0758]
[1646678125033,0.43357047,83.04,82.97,60.2465]
[1646678125236,6.023,83.039,82.97,60.2465]
[1646678125435,6.84059258,83.038,82.97,60.2465]
[1646678125634,6.023,83.037,82.971,0.25]
[1646678125833,6.84059258,83.036,82.971,48.23656835]
[1646678126035,6.023,83.035,82.971,48.23656835]
[1646678126237,6.25,83.034,82.971,48.23656835]
[1646678126435,6.023,83.033,82.971,48.23656835]
[1646678126635,6.25,83.032,82.971,48.23656835]
[1646678126834,6.023,83.031,82.971,48.23656835]
[1646678127034,6.25,83.03,82.971,0.25]
[1646678127236,6.48381926,83.029,82.98,18.0777]
[1646678127438,120.3,83.027,82.927,23.9217]
[1646678127638,192.44,83.019,82.916,17.8476]
[1646678127838,120.3,83.006,82.916,17.8476]
[1646678128138,0.89041698,83.003,82.917,35.9981038]
[1646678128338,0.89041698,83.001,82.917,35.9981038]
[1646678128537,0.89041698,82.998,82.917,35.9981038]
[1646678128741,0.89041698,82.996,82.918,0.25]
[1646678129038,7.14041698,82.996,82.917,35.9981038]
[1646678129238,6.027,82.995,82.94,18.0861]
[1646678129439,6.25,82.994,82.94,18.0861]
[1646678129641,6.026,82.993,82.94,18.0861]
[1646678129840,6.25,82.992,82.94,18.0861]
[1646678130039,6.026,82.991,82.94,18.0861]
[1646678130242,6.25,82.99,82.941,0.25]
[1646678130442,6.026,82.989,82.95,18.0844]
[1646678130641,6.25,82.988,82.951,36.20255229]
[1646678130940,6.25,82.99,82.951,36.20255229]
[1646678130941,6.25,82.987,82.951,36.20255229]
[1646678131143,6.25,82.99,82.951,36.20255229]
[1646678131346,6.25,82.99,82.95,18.0844]
[1646678131545,0.25,82.99,82.95,18.0844]
[1646678131943,0.25,82.995,82.95,18.0844]
[1646678132243,0.25,82.995,82.941,0.25]
[1646678132442,120.3,82.993,82.922,6.25]
[1646678132644,0.54720071,82.991,82.922,0.25]
[1646678132842,6.027,82.99,82.922,0.25]
[1646678133044,6.25,82.989,82.922,0.25]
[1646678133245,6.027,82.988,82.922,0.25]
[1646678133444,6.25,82.987,82.922,0.25]
[1646678133644,6.027,82.986,82.922,0.25]
[1646678133846,6.25,82.985,82.922,0.25]
[1646678134043,6.027,82.984,82.922,0.25]
[1646678134243,6.25,82.983,82.93,18.0888]
[1646678134444,6.027,82.982,82.931,0.25]
[1646678134744,6.25,82.981,82.931,0.25]
[1646678135050,6.027,82.98,82.931,0.25]
[1646678135245,6.25,82.979,82.931,0.25]
[1646678135444,6.027,82.978,82.931,0.25]
[1646678135644,6.25,82.977,82.922,0.25]
[1646678135844,6.027,82.976,82.921,42.17526702]
[1646678136046,6.25,82.975,82.921,42.17526702]
[1646678136244,6.027,82.974,82.921,42.17526702]
[1646678136447,6.25,82.973,82.921,42.17526702]
[1646678136646,0.45105353,82.972,82.92,60.2858]
[1646678136845,6.25,82.973,82.9,74.7281]
[1646678137046,126.81673124,82.972,82.907,6.0]
[1646678137247,0.25,82.971,82.893,25.06417233]
[1646678137446,126.329,82.97,82.893,25.06417233]
[1646678137744,120.3,82.968,82.893,25.06417233]
[1646678137945,12.279,82.967,82.9,18.0952]
[1646678138147,6.029,82.967,82.9,18.0952]
[1646678138344,6.25,82.966,82.901,31.31417233]
[1646678138644,0.25,82.966,82.902,25.06417233]
[1646678138844,0.25,82.966,82.904,36.15282471]
[1646678139058,6.25,82.971,82.92,18.086]
[1646678139248,6.25,82.971,82.921,37.30184933]
[1646678139448,6.028,82.97,82.921,37.30184933]
[1646678139647,0.25,82.969,82.921,0.25]
[1646678140048,6.027,82.968,82.921,0.25]
[1646678140248,6.027,82.968,82.908,0.25]
[1646678140448,6.027,82.968,82.902,6.25]
[1646678140849,6.0,82.967,82.903,36.76223166]
[1646678141050,6.0,82.967,82.93,18.0855]
[1646678141254,0.25,82.969,82.931,0.25]
[1646678141451,0.25,82.99,82.931,0.25]
[1646678141653,6.026,82.989,82.931,0.25]
[1646678141851,6.25,82.988,82.931,0.25]
[1646678142050,6.027,82.987,82.931,0.25]
[1646678142350,6.25,82.986,82.931,0.25]
[1646678142749,0.25,82.986,82.931,0.25]
[1646678143450,0.25,82.987,82.931,0.25]
[1646678143851,0.25,82.987,82.94,18.0865]
[1646678144155,0.25,82.992,82.931,0.25]
[1646678144352,0.54905697,82.988,82.905,6.25]
[1646678144555,0.54905697,82.986,82.905,6.25]
[1646678144752,0.54905697,82.984,82.905,6.25]
[1646678144953,143.0433,82.983,82.905,6.25]
[1646678145154,132.577,82.982,82.92,18.0906]
[1646678145355,12.277,82.982,82.921,0.25]
[1646678146355,12.277,82.982,82.92,0.25]
[1646678146759,6.25,82.982,82.92,0.25]
[1646678147157,6.0,82.982,82.93,18.0865]
[1646678147357,6.0,82.995,82.931,0.25]
[1646678147756,0.25,82.994,82.931,3.08613526]
[1646678147957,6.0,82.996,82.932,43.52974947]
[1646678148158,6.0,82.996,82.95,18.0807]
[1646678148357,6.0,82.996,82.951,0.25]
[1646678149057,6.026,83.006,82.951,0.25]
[1646678149261,6.026,83.006,82.96,18.0823]
[1646678149458,23.3796,83.031,82.962,35.17232999]
[1646678149660,6.024,83.03,82.963,6.25]
[1646678149856,23.3796,83.031,82.963,6.25]
[1646678150059,23.3796,83.031,82.964,2.83613526]
[1646678150259,23.3796,83.031,82.97,18.0716]
[1646678150558,23.3796,83.031,82.971,6.25]
[1646678150859,6.274,83.03,82.972,6.25]
[1646678151059,6.274,83.03,82.965,0.25]
[1646678151460,6.0,83.029,82.965,0.25]
[1646678151762,6.274,83.028,82.97,18.0788]
[1646678152061,6.0,83.027,82.971,0.25]
[1646678152259,6.274,83.026,82.971,0.25]
[1646678152460,6.0,83.025,82.971,0.25]
[1646678152659,6.274,83.024,82.971,0.25]
[1646678152860,6.0,83.023,82.971,0.25]
[1646678153081,6.274,83.022,82.971,0.25]
[1646678153262,6.0,83.021,82.98,18.0753]
[1646678153461,6.274,83.02,82.981,0.25]
[1646678153662,0.40519419,83.018,82.981,0.25]
[1646678153865,0.25,83.018,82.981,0.25]
[1646678154065,0.40519419,83.019,82.981,0.25]
[1646678154267,0.60300492,83.017,82.956,6.0]
[1646678154568,0.25,83.02,82.98,18.0776]
[1646678154965,0.25,83.029,82.96,60.2586]
[1646678155165,0.25,83.029,82.961,6.0]
[1646678155567,0.25,83.029,82.962,0.25]
[1646678155966,0.25,83.029,82.962,45.79020324]
[1646678156167,0.25,83.029,82.97,18.0797]
[1646678156369,0.25,83.029,82.971,0.25]
[1646678156770,6.274,83.029,82.971,0.25]
[1646678156968,6.0,83.028,82.971,0.25]
[1646678157369,6.0,83.028,82.98,18.0746]
[1646678157568,6.023,83.028,82.981,0.25]
[1646678157771,6.0,83.027,82.981,0.25]
[1646678158370,6.0,83.027,82.99,18.0753]
[1646678158569,6.0,83.027,82.991,0.25]
[1646678159672,6.0,83.027,82.981,0.25]
[1646678160073,6.0,83.029,82.99,18.0754]
[1646678160375,6.273,83.028,82.991,0.25]
[1646678160588,6.0,83.027,82.961,6.0]
[1646678160789,6.0,83.029,82.962,0.25]
[1646678160790,6.71490543,83.026,82.962,0.25]
[1646678160988,126.3,83.025,82.962,0.25]
[1646678161190,120.3,83.023,82.962,0.25]
[1646678161392,132.574,83.022,82.962,0.25]
[1646678161594,126.324,83.022,82.962,0.25]
[1646678161793,6.25,83.021,82.962,0.25]
[1646678161991,6.25,83.021,82.97,18.0796]
[1646678161992,29.536,83.02,82.97,18.0796]
[1646678162193,6.0,83.019,82.971,6.25]
[1646678162693,6.0,83.019,82.971,34.45925039]
[1646678162893,6.0,83.036,82.971,34.45925039]
[1646678163092,6.023,83.035,82.972,2.83613526]
[1646678163293,6.0,83.034,82.974,35.05616805]
[1646678163493,6.0,83.034,82.98,18.0727]
[1646678163695,6.0,83.034,82.981,6.25]
[1646678163896,6.0,83.035,82.981,9.08613526]
[1646678164095,6.023,83.036,82.982,120.3]
[1646678164299,1.59157126,83.087,82.984,120.3]
[1646678164493,1.59157126,83.093,82.99,18.0726]
[1646678164695,1.59157126,83.094,83.0,74.645]
[1646678164894,1.59157126,83.094,83.001,6.25]
[1646678165092,17.38931511,83.077,83.002,48.46467713]
[1646678165294,17.38931511,83.077,83.003,6.25]
[1646678165497,6.0,83.067,83.01,18.0645]
[1646678165695,6.0,83.067,83.011,0.25]
[1646678166095,6.0,83.067,83.011,6.25]
[1646678166493,6.0,83.067,83.02,18.0659]
[1646678166694,6.0,83.067,83.021,45.7601877]
[1646678167697,6.019,83.066,83.03,18.0663]
[1646678167895,6.0,83.065,83.031,0.25]
[1646678168194,6.019,83.064,83.031,0.25]
[1646678168395,6.0,83.063,83.031,0.25]
[1646678168595,6.019,83.062,83.031,0.25]
[1646678168798,6.25,83.061,83.003,2.83613526]
[1646678168995,120.3,83.059,83.003,2.83613526]
[1646678169195,120.3,83.057,82.98,14.43]
[1646678169398,12.59390438,83.056,82.981,2.83613526]
[1646678169597,12.022,83.056,82.981,31.04538565]
[1646678169796,12.022,83.056,82.982,68.85212591]
[1646678169997,12.022,83.056,82.982,71.68826117]
[1646678170201,12.022,83.056,83.01,18.0709]
[1646678170400,12.022,83.056,83.011,0.25]
[1646678170698,0.25,83.058,83.011,0.25]
[1646678170899,6.25,83.06,83.011,0.25]
[1646678171501,6.25,83.06,83.01,0.25]
[1646678171902,0.25,83.06,83.01,0.25]
[1646678172100,0.25,83.066,83.02,18.0664]
[1646678172298,0.25,83.066,83.021,0.25]
[1646678172499,28.9788,83.067,83.021,0.25]
[1646678173298,28.9788,83.067,83.011,0.25]
[1646678173499,28.9788,83.067,83.03,18.0672]
[1646678173700,28.9788,83.067,83.031,0.25]
[1646678175405,6.019,83.088,83.031,0.25]
[1646678175406,6.019,83.088,83.04,18.0644]
[1646678175604,6.019,83.09,83.041,0.25]
[1646678175800,120.3,83.101,83.041,0.25]
[1646678176002,23.4742,83.1,83.041,3.08613526]
[1646678176201,23.4742,83.1,83.042,8.83613526]
[1646678176402,23.4742,83.1,83.043,48.5660092]
[1646678176703,6.018,83.099,83.05,18.0575]
[1646678176901,12.018,83.099,83.051,0.25]
[1646678177502,6.018,83.099,83.06,18.0573]
[1646678177702,6.018,83.119,83.061,0.25]
[1646678178306,20.45762701,83.118,83.061,0.25]
[1646678178804,6.0,83.117,83.054,0.25]
[1646678179103,6.0,83.117,83.07,18.054]
[1646678179305,6.0,83.117,83.071,44.7598956]
[1646678179506,6.0,83.122,83.071,44.7598956]
[1646678179708,6.017,83.121,83.071,44.7598956]
[1646678179908,6.0,83.12,83.071,44.7598956]
[1646678180405,6.0,83.12,83.08,18.055]
[1646678180604,6.0,83.123,83.081,0.25]
[1646678180805,0.25,83.122,83.081,0.25]
[1646678182907,0.25,83.122,83.09,18.0537]
[1646678183106,0.25,83.122,83.091,0.25]
[1646678183509,6.0,83.123,83.091,0.25]
[1646678184512,6.0,83.123,83.04,14.43]
[1646678184513,0.25,83.122,83.053,6.0]
[1646678184713,120.3,83.12,83.02,14.43]
[1646678184914,121.19041698,83.118,83.03,14.43]
[1646678185110,121.19041698,83.116,83.03,14.43]
[1646678185310,0.89041698,83.113,83.03,14.43]
[1646678185511,144.8308,83.112,83.033,37.54585773]
[1646678185710,0.89041698,83.11,83.034,0.25]
[1646678185912,126.55,83.111,83.034,9.08613526]
[1646678186112,126.55,83.111,83.04,18.0643]
[1646678186512,126.55,83.111,83.041,2.83613526]
[1646678186912,0.42087679,83.11,83.041,2.83613526]
[1646678187516,0.42087679,83.11,83.042,0.25]
[1646678188014,0.42087679,83.11,83.043,2.83613526]
[1646678188216,0.42087679,83.11,83.06,18.0601]
[1646678188414,126.55,83.111,83.061,0.25]
[1646678188814,6.017,83.11,83.061,0.25]
[1646678189014,6.25,83.109,83.029,2.83613526]
[1646678189219,0.53379114,83.107,83.033,0.25]
[1646678189516,120.3,83.098,83.012,2.83613526]
[1646678189715,1.59157126,83.095,83.012,2.83613526]
[1646678189915,0.7916996,83.092,83.012,2.83613526]
[1646678190121,0.7916996,83.09,83.013,48.64327591]
[1646678190319,120.3,83.089,83.012,2.83613526]
[1646678190518,120.3,83.079,83.014,2.83613526]
[1646678190819,0.7916996,83.076,83.0,24.39591706]
[1646678191025,126.321,83.075,82.999,2.83613526]
[1646678191221,1.59157126,83.066,82.988,24.39591706]
[1646678191423,120.3,83.06,82.966,24.39591706]
[1646678191619,120.3,83.049,82.96,18.0809]
[1646678191819,120.3,83.047,82.96,18.0809]
[1646678192024,121.0916996,83.045,82.96,18.0809]
[1646678192222,72.14,83.032,82.948,24.39591706]
[1646678192421,12.273,83.044,82.896,100.0]
[1646678192422,192.44,83.019,82.935,24.39591706]
[1646678192624,192.44,83.017,82.922,24.39591706]
[1646678192819,193.2316996,83.015,82.922,24.39591706]
[1646678193021,192.44,83.009,82.922,24.39591706]
[1646678193222,120.3,82.997,82.907,24.39591706]
[1646678193422,192.44,82.989,82.907,24.39591706]
[1646678193620,120.3,82.987,82.907,24.39591706]
[1646678193822,120.3,82.985,82.907,24.39591706]
[1646678194122,120.3,82.983,82.91,18.0922]